fUSD/lending_fUSD_20240801
["ID","MTS","AMOUNT","RATE_DAILY","PERIOD"]
[333802086,1722521189001,-1968.06,0.00043835,60]
[333802087,1722521189048,-3840.57,0.00043835,60]
[333802088,1722521189091,-500.0,0.00043835,60]
[333802089,1722521189133,-500.0,0.00043835,60]
[333802090,1722521189178,-6111.79,0.00043835,60]
[333802091,1722521189222,-2789.11,0.00043835,60]
[333802092,1722521189264,-3050.93,0.00043835,60]
[333802093,1722521189310,-500.0,0.00043835,60]
[333802094,1722521189357,-814.74,0.00043835,60]
[333802095,1722521189402,-2239.65,0.00043835,60]
[333802096,1722521189447,-542.6,0.00043835,60]
[333802097,1722521189487,-500.0,0.00043835,60]
[333802098,1722521189529,-2524.21,0.00043835,60]
[333802099,1722521189571,-1556.24,0.00043835,60]
[333802100,1722521189616,-500.0,0.00043835,60]
[333802101,1722521189658,-500.0,0.00043835,60]
[333802102,1722521189699,-2219.64,0.00043835,60]
[333802103,1722521189740,-500.0,0.00043835,60]
[333802104,1722521189785,-1052.9,0.00043835,60]
[333802105,1722521189828,-500.0,0.00043835,60]
[333802106,1722521189869,-500.0,0.00043835,60]
[333802107,1722521189911,-500.0,0.00043835,60]
[333802108,1722521189954,-506.16,0.00043835,60]
[333802109,1722521189996,-2257.18,0.00043835,60]
[333802110,1722521190040,-502.65339016,0.00043835,60]
[333802111,1722521190081,-552.92,0.00043835,60]
[333802112,1722521190123,-500.0,0.00043835,60]
[333802113,1722521190166,-12620.5,0.00043835,60]
[333802114,1722521190209,-2730.06,0.00043835,60]
[333802115,1722521190253,-645.89151461,0.00043835,60]
[333802116,1722521190295,-677.08,0.00043835,60]
[333802117,1722521190337,-7747.35,0.00043835,60]
[333802118,1722521190379,-539.83765139,0.00043835,60]
[333802119,1722521190424,-500.0,0.00043835,60]
[333802120,1722521190466,-500.0,0.00043835,60]
[333802121,1722521190509,-4300.06,0.00043835,60]
[333802122,1722521190554,-500.0,0.00043835,60]
[333802123,1722521190598,-500.0,0.00043835,60]
[333802124,1722521190640,-513.65,0.00043835,60]
[333802125,1722521190684,-632.83,0.00043835,60]
[333802126,1722521190726,-877.28,0.00043835,60]
[333802127,1722521190768,-500.0,0.00043835,60]
[333802128,1722521190811,-500.0,0.00043835,60]
[333802129,1722521190851,-500.0,0.00043835,60]
[333802130,1722521190891,-2241.09,0.00043835,60]
[333802131,1722521190931,-4985.73,0.00043835,60]
[333802132,1722521190972,-559.71,0.00043835,60]
[333802133,1722521191014,-500.0,0.00043835,60]
[333802134,1722521191054,-2377.47,0.00043835,60]
[333802135,1722521191093,-1290.23,0.00043835,60]
[333802136,1722521191134,-11417.83,0.00043835,60]
[333802137,1722521191176,-500.0,0.00043835,60]
[333802138,1722521191217,-2853.95,0.00043835,60]
[333802139,1722521191256,-586.85,0.00043835,60]
[333802140,1722521191299,-4172.83,0.00043835,60]
[333802141,1722521191338,-500.0,0.00043835,60]
[333802142,1722521191379,-5140.53,0.00043835,60]
[333802143,1722521191418,-2717.21,0.00043835,60]
[333802144,1722521191456,-14723.02,0.00043835,60]
[333802145,1722521191495,-1347.78,0.00043835,60]
[333802146,1722521191532,-672.65,0.00043835,60]
[333802147,1722521191571,-500.0,0.00043835,60]
[333802148,1722521191609,-522.77,0.00043835,60]
[333802149,1722521191648,-4606.34,0.00043835,60]
[333802150,1722521191690,-500.0,0.00043835,60]
[333802151,1722521191734,-531.0,0.00043835,60]
[333802152,1722521191775,-967.98,0.00043835,60]
[333802153,1722521191818,-500.0,0.00043835,60]
[333802154,1722521191856,-500.0,0.00043835,60]
[333802155,1722521191893,-500.0,0.00043835,60]
[333802156,1722521191932,-500.0,0.00043835,60]
[333802157,1722521191969,-2191.44,0.00043835,60]
[333802158,1722521192010,-1889.33,0.00043835,60]
[333802159,1722521192048,-1329.35,0.00043835,60]
[333802160,1722521192090,-500.0,0.00043835,60]
[333802161,1722521192129,-996.77,0.00043835,60]
[333802162,1722521192166,-500.0,0.00043835,60]
[333802163,1722521192490,-813.09,0.00043835,60]
[333802164,1722521192532,-500.0,0.00043835,60]
[333802165,1722521192573,-520.08059028,0.00043835,60]
[333802166,1722521192616,-500.0,0.00043835,60]
[333802167,1722521192656,-3865.65,0.00043835,60]
[333802168,1722521192719,-500.0,0.00043835,60]
[333802169,1722521192759,-6954.72,0.00043835,60]
[333802170,1722521192800,-500.0,0.00043835,60]
[333802171,1722521192838,-1283.37,0.00043835,60]
[333802172,1722521192876,-18566.82,0.00043835,60]
[333802173,1722521192915,-500.0,0.00043835,60]
[333802174,1722521192954,-1755.82,0.00043835,60]
[333802175,1722521192992,-7201.1,0.00043835,60]
[333802176,1722521193031,-1853.8,0.00043835,60]
[333802177,1722521193071,-565.59376375,0.00043835,60]
[333802178,1722521193110,-730.9,0.00043835,60]
[333802179,1722521193152,-2843.72,0.00043835,60]
[333802180,1722521193192,-500.0,0.00043835,60]
[333802181,1722521193233,-4528.07,0.00043835,60]
[333802182,1722521193275,-500.0,0.00043835,60]
[333802183,1722521193317,-601.01,0.00043835,60]
[333802184,1722521193360,-2235.6,0.00043835,60]
[333802185,1722521193401,-500.0,0.00043835,60]
[333802186,1722521193445,-500.0,0.00043835,60]
[333802187,1722521193487,-3204.8,0.00043835,60]
[333802188,1722521193530,-500.0,0.00043835,60]
[333802189,1722521193572,-1370.22,0.00043835,60]
[333802190,1722521193614,-696.3,0.00043835,60]
[333802191,1722521193655,-500.0,0.00043835,60]
[333802192,1722521193698,-7033.92,0.00043835,60]
[333802193,1722521193740,-2123.48,0.00043835,60]
[333802194,1722521193788,-1405.97,0.00043835,60]
[333802195,1722521193834,-1956.63,0.00043835,60]
[333802196,1722521193877,-500.0,0.00043835,60]
[333802197,1722521193924,-14717.26,0.00043835,60]
[333802198,1722521193968,-6403.02,0.00043835,60]
[333802199,1722521194012,-10460.56,0.00043835,60]
[333802200,1722521194053,-510.29850384,0.00043835,60]
[333802201,1722521194095,-1462.75,0.00043835,60]
[333802202,1722521194137,-508.81071901,0.00043835,60]
[333802203,1722521194179,-500.0,0.00043835,60]
[333802204,1722521194222,-500.0,0.00043835,60]
[333802205,1722521194267,-1390.25,0.00043835,60]
[333802206,1722521194310,-1596.15,0.00043835,60]
[333802207,1722521194351,-550.96,0.00043835,60]
[333802208,1722521194393,-2474.01,0.00043835,60]
[333802209,1722521194435,-500.0,0.00043835,60]
[333802210,1722521194477,-500.0,0.00043835,60]
[333802211,1722521194520,-5589.57,0.00043835,60]
[333802212,1722521194563,-500.0,0.00043835,60]
[333802213,1722521194608,-345.8756394,0.00043835,60]
[333802214,1722521194650,-1745.21,0.00043835,60]
[333802215,1722521194693,-500.0,0.00043835,60]
[333802216,1722521194735,-1780.6,0.00043835,60]
[333802217,1722521194778,-986.44,0.00043835,60]
[333802218,1722521194821,-2702.71,0.00043835,60]
[333802219,1722521194863,-508.40058902,0.00043835,60]
[333802220,1722521194904,-511.1,0.00043835,60]
[333802221,1722521194946,-500.0,0.00043835,60]
[333802222,1722521194989,-31465.91,0.00043835,60]
[333802223,1722521195031,-8385.61,0.00043835,60]
[333802224,1722521195073,-585.79,0.00043835,60]
[333802225,1722521195114,-500.0,0.00043835,60]
[333802226,1722521195155,-1094.16,0.00043835,60]
[333802227,1722521195210,-3489.79,0.00043835,60]
[333802228,1722521195250,-561.05,0.00043835,60]
[333802229,1722521195292,-500.0,0.00043835,60]
[333802230,1722521195335,-3699.93,0.00043835,60]
[333802231,1722521195379,-2143.02,0.00043835,60]
[333802232,1722521195420,-500.0,0.00043835,60]
[333802233,1722521195464,-513.35607123,0.00043835,60]
[333802234,1722521195508,-500.0,0.00043835,60]
[333802235,1722521195550,-4939.79,0.00043835,60]
[333802236,1722521195594,-500.0,0.00043835,60]
[333802237,1722521195647,-6547.8,0.00043835,60]
[333802238,1722521195714,-3260.03,0.00043835,60]
[333802239,1722521195762,-2562.71,0.00043835,60]
[333802240,1722521195807,-500.0,0.00043835,60]
[333802241,1722521195849,-500.0,0.00043835,60]
[333802242,1722521195891,-525.33,0.00043835,60]
[333802243,1722521195933,-2478.51,0.00043835,60]
[333802244,1722521195975,-504.78261092,0.00043835,60]
[333802245,1722521196016,-1884.4,0.00043835,60]
[333802246,1722521196056,-500.0,0.00043835,60]
[333802247,1722521196099,-5469.62,0.00043835,60]
[333802248,1722521196139,-548.48613692,0.00043835,60]
[333802249,1722521196182,-500.0,0.00043835,60]
[333802250,1722521196241,-552.66,0.00043835,60]
[333802251,1722521196284,-716.84,0.00043835,60]
[333802252,1722521196326,-3964.73,0.00043835,60]
[333802253,1722521196369,-568.45870099,0.00043835,60]
[333802254,1722521196410,-500.0,0.00043835,60]
[333802255,1722521196452,-4895.65,0.00043835,60]
[333802256,1722521196497,-1575.59,0.00043835,60]
[333802257,1722521196540,-4904.15,0.00043835,60]
[333802258,1722521196581,-500.0,0.00043835,60]
[333802259,1722521196621,-500.0,0.00043835,60]
[333802260,1722521196661,-1553.64,0.00043835,60]
[333802261,1722521196716,-250.41948145,0.00043835,60]
[333802262,1722521196762,-3317.64,0.00043835,60]
[333802263,1722521196806,-500.0,0.00043835,60]
[333802264,1722521196846,-1273.65,0.00043835,60]
[333802265,1722521196887,-3150.91,0.00043835,60]
[333802266,1722521196928,-4108.53,0.00043835,60]
[333802267,1722521196968,-500.0,0.00043835,60]
[333802268,1722521197288,-500.0,0.00043835,60]
[333802269,1722521197332,-500.0,0.00043835,60]
[333802270,1722521197376,-500.0,0.00043835,60]
[333802271,1722521197418,-500.0,0.00043835,60]
[333802272,1722521197461,-2744.51,0.00043835,60]
[333802273,1722521197505,-1509.48,0.00043835,60]
[333802274,1722521197548,-7147.06,0.00043835,60]
[333802275,1722521197591,-797.57,0.00043835,60]
[333802276,1722521197631,-500.0,0.00043835,60]
[333802277,1722521197671,-1947.55,0.00043835,60]
[333802278,1722521197726,-4417.3,0.00043835,60]
[333802279,1722521197769,-920.93,0.00043835,60]
[333802280,1722521197816,-500.0,0.00043835,60]
[333802281,1722521197859,-510.89,0.00043835,60]
[333802282,1722521197902,-26807.72,0.00043835,60]
[333802283,1722521197946,-643.73,0.00043835,60]
[333802284,1722521197989,-575.95,0.00043835,60]
[333802285,1722521198028,-5157.53,0.00043835,60]
[333802286,1722521198072,-897.26,0.00043835,60]
[333802287,1722521198113,-500.0,0.00043835,60]
[333802288,1722521198155,-500.0,0.00043835,60]
[333802289,1722521198209,-771.13,0.00043835,60]
[333802290,1722521198263,-818.66,0.00043835,60]
[333802291,1722521198309,-500.0,0.00043835,60]
[333802292,1722521198354,-500.0,0.00043835,60]
[333802293,1722521198400,-500.0,0.00043835,60]
[333802294,1722521198445,-1123.37,0.00043835,60]
[333802295,1722521198489,-1425.09,0.00043835,60]
[333802296,1722521198530,-500.0,0.00043835,60]
[333802297,1722521198573,-501.48,0.00043835,60]
[333802298,1722521198613,-7551.58,0.00043835,60]
[333802299,1722521198653,-3616.8,0.00043835,60]
[333802300,1722521198692,-4351.63,0.00043835,60]
[333802301,1722521198740,-500.0,0.00043835,60]
[333802302,1722521198780,-2988.4,0.00043835,60]
[333802303,1722521198820,-586.1,0.00043835,60]
[333802304,1722521198861,-669.6,0.00043835,60]
[333802305,1722521198900,-15069.62,0.00043835,60]
[333802306,1722521198943,-500.0,0.00043835,60]
[333802307,1722521198996,-7482.01,0.00043835,60]
[333802308,1722521199039,-500.0,0.00043835,60]
[333802309,1722521199080,-1390.65,0.00043835,60]
[333802310,1722521199122,-500.0,0.00043835,60]
[333802311,1722521199167,-500.0,0.00043835,60]
[333802312,1722521199222,-1585.59,0.00043835,60]
[333802313,1722521199267,-2152.1,0.00043835,60]
[333802314,1722521199315,-500.0,0.00043835,60]
[333802315,1722521199361,-500.0,0.00043835,60]
[333802316,1722521199405,-791.06,0.00043835,60]
[333802317,1722521199451,-1127.97,0.00043835,60]
[333802318,1722521199506,-500.0,0.00043835,60]
[333802319,1722521199552,-500.0,0.00043835,60]
[333802320,1722521199596,-500.0,0.00043835,60]
[333802321,1722521199638,-500.0,0.00043835,60]
[333802322,1722521199679,-500.0,0.00043835,60]
[333802323,1722521199725,-500.0,0.00043835,60]
[333802324,1722521199770,-500.0,0.00043835,60]
[333802325,1722521199815,-500.0,0.00043835,60]
[333802326,1722521199855,-500.0,0.00043835,60]
[333802327,1722521199897,-500.0,0.00043835,60]
[333802328,1722521199938,-500.0,0.00043835,60]
[333802329,1722521199992,-543.22057148,0.00043835,60]
[333802330,1722521200034,-571.83,0.00043835,60]
[333802331,1722521200077,-500.0,0.00043835,60]
[333802332,1722521200120,-1474.49,0.00043835,60]
[333802333,1722521200161,-522.36,0.00043835,60]
[333802334,1722521200205,-10902.64,0.00043835,60]
[333802335,1722521200247,-1494.28,0.00043835,60]
[333802336,1722521200290,-500.0,0.00043835,60]
[333802337,1722521200336,-500.0,0.00043835,60]
[333802338,1722521200382,-636.19,0.00043835,60]
[333802339,1722521200428,-7955.7,0.00043835,60]
[333802340,1722521200474,-500.0,0.00043835,60]
[333802341,1722521200521,-2715.42,0.00043835,60]
[333802342,1722521200568,-7455.8,0.00043835,60]
[333802343,1722521200611,-500.0,0.00043835,60]
[333802344,1722521200655,-500.0,0.00043835,60]
[333802345,1722521200695,-500.0,0.00043835,60]
[333802346,1722521200740,-500.0,0.00043835,60]
[333802347,1722521200779,-1618.2,0.00043835,60]
[333802348,1722521200818,-500.0,0.00043835,60]
[333802349,1722521200862,-6609.08,0.00043835,60]
[333802350,1722521200902,-624.33,0.00043835,60]
[333802351,1722521200945,-6609.08,0.00043835,60]
[333802352,1722521200991,-6609.08,0.00043835,60]
[333802353,1722521201033,-500.0,0.00043835,60]
[333802354,1722521201074,-4651.9,0.00043835,60]
[333802355,1722521201117,-6609.08,0.00043835,60]
[333802356,1722521201157,-568.57,0.00043835,60]
[333802357,1722521201198,-980.18,0.00043835,60]
[333802358,1722521201243,-6014.66,0.00043835,60]
[333802359,1722521201286,-6609.08,0.00043835,60]
[333802360,1722521201330,-6609.08,0.00043835,60]
[333802361,1722521201372,-500.0,0.00043835,60]
[333802362,1722521201416,-6609.08,0.00043835,60]
[333802363,1722521201465,-7107.51,0.00043835,60]
[333802364,1722521201513,-6609.08,0.00043835,60]
[333802365,1722521201553,-500.0,0.00043835,60]
[333802366,1722521201594,-1459.13,0.00043835,60]
[333802367,1722521201635,-5795.66,0.00043835,60]
[333802368,1722521201682,-6609.08,0.00043835,60]
[333802369,1722521201733,-6609.08,0.00043835,60]
[333802370,1722521201786,-5410.35,0.00043835,60]
[333802371,1722521201833,-6067.06,0.00043835,60]
[333802372,1722521201878,-6609.08,0.00043835,60]
[333802373,1722521202190,-1499.16,0.00043835,60]
[333802374,1722521202241,-6609.08,0.00043835,60]
[333802375,1722521202283,-500.05,0.00043835,60]
[333802376,1722521202327,-6609.08,0.00043835,60]
[333802377,1722521202372,-6609.08,0.00043835,60]
[333802378,1722521202419,-6609.08,0.00043835,60]
[333802379,1722521202466,-6609.08,0.00043835,60]
[333802380,1722521202510,-4128.24,0.00043835,60]
[333802381,1722521202551,-500.0,0.00043835,60]
[333802382,1722521202596,-6609.08,0.00043835,60]
[333802383,1722521202636,-500.0,0.00043835,60]
[333802384,1722521202681,-6609.08,0.00043835,60]
[333802385,1722521202726,-312.28713921,0.00043835,60]
[333802386,1722521202767,-6609.08,0.00043835,60]
[333802387,1722521202806,-500.0,0.00043835,60]
[333802388,1722521202847,-2337.05,0.00043835,60]
[333802389,1722521202887,-500.0,0.00043835,60]
[333802390,1722521202929,-6609.08,0.00043835,60]
[333802391,1722521202973,-6609.08,0.00043835,60]
[333802392,1722521203012,-500.0,0.00043835,60]
[333802393,1722521203054,-6609.08,0.00043835,60]
[333802394,1722521203095,-6609.08,0.00043835,60]
[333802395,1722521203135,-6609.2279319,0.00043835,60]
[333802396,1722521203174,-626.92,0.00043835,60]
[333802397,1722521203215,-553.56,0.00043835,60]
[333802398,1722521203254,-500.0,0.00043835,60]
[333802399,1722521203292,-3273.44,0.00043835,60]
[333802400,1722521203333,-1523.36,0.00043835,60]
[333802401,1722521203374,-22964.42,0.00043835,60]
[333802402,1722521203415,-2943.51,0.00043835,60]
[333802403,1722521203457,-1486.69,0.00043835,60]
[333802404,1722521203499,-500.0,0.00043835,60]
[333802405,1722521203542,-6409.93,0.00043835,60]
[333802406,1722521203586,-500.0,0.00043835,60]
[333802407,1722521203628,-2980.48,0.00043835,60]
[333802408,1722521203669,-202.41532429,0.00043835,60]
[333802409,1722521203711,-607.3,0.00043835,60]
[333802410,1722521203751,-6752.15,0.00043835,60]
[333802411,1722521203792,-500.0,0.00043835,60]
[333802412,1722521203831,-500.0,0.00043835,60]
[333802413,1722521203871,-1557.1,0.00043835,60]
[333802414,1722521203909,-3995.54,0.00043835,60]
[333802415,1722521203950,-1236.24,0.00043835,60]
[333802416,1722521203993,-4454.71,0.00043835,60]
[333802417,1722521204034,-1595.1,0.00043835,60]
[333802418,1722521204077,-500.0,0.00043835,60]
[333802419,1722521204117,-500.0,0.00043835,60]
[333802420,1722521204159,-2819.88,0.00043835,60]
[333802421,1722521204200,-500.0,0.00043835,60]
[333802422,1722521204243,-500.0,0.00043835,60]
[333802423,1722521204285,-1124.83,0.00043835,60]
[333802424,1722521204325,-2670.62,0.00043835,60]
[333802425,1722521204365,-500.0,0.00043835,60]
[333802426,1722521204408,-500.0,0.00043835,60]
[333802427,1722521204453,-500.0,0.00043835,60]
[333802428,1722521204500,-855.09,0.00043835,60]
[333802429,1722521204545,-500.0,0.00043835,60]
[333802430,1722521204592,-3055.01,0.00043835,60]
[333802431,1722521204636,-500.0,0.00043835,60]
[333802432,1722521204676,-500.0,0.00043835,60]
[333802433,1722521204721,-4168.29,0.00043835,60]
[333802434,1722521204764,-2588.13,0.00043835,60]
[333802435,1722521204809,-5952.16,0.00043835,60]
[333802436,1722521204849,-500.0,0.00043835,60]
[333802437,1722521204890,-500.0,0.00043835,60]
[333802438,1722521204930,-500.0,0.00043835,60]
[333802439,1722521204968,-500.0,0.00043835,60]
[333802440,1722521205008,-644.16,0.00043835,60]
[333802441,1722521205050,-500.0,0.00043835,60]
[333802442,1722521205091,-4816.73,0.00043835,60]
[333802443,1722521205131,-500.0,0.00043835,60]
[333802444,1722521205174,-500.0,0.00043835,60]
[333802445,1722521205215,-5038.47,0.00043835,60]
[333802446,1722521205254,-7439.5,0.00043835,60]
[333802447,1722521205298,-500.0,0.00043835,60]
[333802448,1722521205342,-5730.7,0.00043835,60]
[333802449,1722521205388,-500.0,0.00043835,60]
[333802450,1722521205432,-500.0,0.00043835,60]
[333802451,1722521205476,-500.0,0.00043835,60]
[333802452,1722521205521,-1820.19,0.00043835,60]
[333802453,1722521205561,-665.7,0.00043835,60]
[333802454,1722521205604,-518.33,0.00043835,60]
[333802455,1722521205647,-2576.35,0.00043835,60]
[333802456,1722521205691,-867.97,0.00043835,60]
[333802457,1722521205737,-500.0,0.00043835,60]
[333802458,1722521205778,-500.0,0.00043835,60]
[333802459,1722521205819,-6640.8,0.00043835,60]
[333802460,1722521205862,-1581.57,0.00043835,60]
[333802461,1722521205904,-2582.87,0.00043835,60]
[333802462,1722521205947,-500.0,0.00043835,60]
[333802463,1722521205989,-500.0,0.00043835,60]
[333802464,1722521206032,-500.0,0.00043835,60]
[333802465,1722521206078,-500.0,0.00043835,60]
[333802466,1722521206120,-447.89848534,0.00043835,60]
[333802467,1722521206165,-2014.82,0.00043835,60]
[333802468,1722521206209,-500.0,0.00043835,60]
[333802469,1722521206253,-645.99,0.00043835,60]
[333802470,1722521206295,-4418.65,0.00043835,60]
[333802471,1722521206336,-7037.41,0.00043835,60]
[333802472,1722521206378,-1152.6,0.00043835,60]
[333802473,1722521206419,-500.0,0.00043835,60]
[333802474,1722521206463,-501.72,0.00043835,60]
[333802475,1722521206509,-994.29,0.00043835,60]
[333802476,1722521206553,-500.0,0.00043835,60]
[333802477,1722521206875,-722.68,0.00043835,60]
[333802478,1722521206918,-672.76,0.00043835,60]
[333802479,1722521206963,-9590.18,0.00043835,60]
[333802480,1722521207002,-1359.91,0.00043835,60]
[333802481,1722521207045,-927.38,0.00043835,60]
[333802482,1722521207085,-500.0,0.00043835,60]
[333802483,1722521207129,-500.0,0.00043835,60]
[333802484,1722521207172,-500.0,0.00043835,60]
[333802485,1722521207215,-1046.22,0.00043835,60]
[333802486,1722521207260,-11453.61,0.00043835,60]
[333802487,1722521207304,-500.0,0.00043835,60]
[333802488,1722521207346,-500.0,0.00043835,60]
[333802489,1722521207388,-500.0,0.00043835,60]
[333802490,1722521207431,-500.0,0.00043835,60]
[333802491,1722521207473,-500.0,0.00043835,60]
[333802492,1722521207515,-1648.3,0.00043835,60]
[333802493,1722521207556,-22809.62,0.00043835,60]
[333802494,1722521207598,-1662.42,0.00043835,60]
[333802495,1722521207638,-500.0,0.00043835,60]
[333802496,1722521207678,-500.0,0.00043835,60]
[333802497,1722521207720,-921.75,0.00043835,60]
[333802498,1722521207761,-500.0,0.00043835,60]
[333802499,1722521207808,-4260.74,0.00043835,60]
[333802500,1722521207848,-784.82,0.00043835,60]
[333802501,1722521207890,-965.25,0.00043835,60]
[333802502,1722521207931,-5859.46,0.00043835,60]
[333802503,1722521207971,-512.17227962,0.00043835,60]
[333802504,1722521208010,-500.0,0.00043835,60]
[333802505,1722521208050,-33686.23,0.00043835,60]
[333802506,1722521208091,-500.0,0.00043835,60]
[333802507,1722521208133,-4509.11,0.00043835,60]
[333802508,1722521208176,-1335.71,0.00043835,60]
[333802509,1722521208219,-500.0,0.00043835,60]
[333802510,1722521208263,-500.0,0.00043835,60]
[333802511,1722521208305,-500.0,0.00043835,60]
[333802512,1722521208347,-515.57,0.00043835,60]
[333802513,1722521208390,-500.0,0.00043835,60]
[333802514,1722521208433,-761.42,0.00043835,60]
[333802515,1722521208480,-535.5,0.00043835,60]
[333802516,1722521208526,-7676.32,0.00043835,60]
[333802517,1722521208571,-2753.32,0.00043835,60]
[333802518,1722521208614,-500.0,0.00043835,60]
[333802519,1722521208655,-500.0,0.00043835,60]
[333802520,1722521208700,-3051.8,0.00043835,60]
[333802521,1722521208751,-1636.05,0.00043835,60]
[333802522,1722521208792,-551.28,0.00043835,60]
[333802523,1722521208834,-500.0,0.00043835,60]
[333802524,1722521208875,-500.0,0.00043835,60]
[333802525,1722521208917,-3153.51,0.00043835,60]
[333802526,1722521208959,-500.0,0.00043835,60]
[333802527,1722521209003,-828.59,0.00043835,60]
[333802528,1722521209046,-500.0,0.00043835,60]
[333802529,1722521209087,-1192.53,0.00043835,60]
[333802530,1722521209131,-500.0,0.00043835,60]
[333802531,1722521209174,-510.7,0.00043835,60]
[333802532,1722521209220,-2602.97,0.00043835,60]
[333802533,1722521209264,-517.84,0.00043835,60]
[333802534,1722521209305,-500.0,0.00043835,60]
[333802535,1722521209347,-500.0,0.00043835,60]
[333802536,1722521209390,-500.0,0.00043835,60]
[333802537,1722521209433,-990.47,0.00043835,60]
[333802538,1722521209475,-4315.39,0.00043835,60]
[333802539,1722521209519,-1270.22,0.00043835,60]
[333802540,1722521209561,-500.0,0.00043835,60]
[333802541,1722521209602,-500.0,0.00043835,60]
[333802542,1722521209642,-500.0,0.00043835,60]
[333802543,1722521209685,-1653.99,0.00043835,60]
[333802544,1722521209731,-656.56,0.00043835,60]
[333802545,1722521209776,-500.0,0.00043835,60]
[333802546,1722521209819,-3547.4,0.00043835,60]
[333802547,1722521209862,-500.0,0.00043835,60]
[333802548,1722521209904,-500.0,0.00043835,60]
[333802549,1722521209948,-1767.4,0.00043835,60]
[333802550,1722521209992,-500.0,0.00043835,60]
[333802551,1722521210036,-1114.16,0.00043835,60]
[333802552,1722521210080,-500.0,0.00043835,60]
[333802553,1722521210122,-500.0,0.00043835,60]
[333802554,1722521210164,-12552.68,0.00043835,60]
[333802555,1722521210204,-500.0,0.00043835,60]
[333802556,1722521210249,-500.0,0.00043835,60]
[333802557,1722521210290,-7443.66,0.00043835,60]
[333802558,1722521210332,-630.7,0.00043835,60]
[333802559,1722521210373,-500.0,0.00043835,60]
[333802560,1722521210416,-927.39,0.00043835,60]
[333802561,1722521210462,-500.0,0.00043835,60]
[333802562,1722521210505,-3607.17,0.00043835,60]
[333802563,1722521210548,-500.0,0.00043835,60]
[333802564,1722521210589,-500.0,0.00043835,60]
[333802565,1722521210632,-500.0,0.00043835,60]
[333802566,1722521210673,-3957.67,0.00043835,60]
[333802567,1722521210721,-500.0,0.00043835,60]
[333802568,1722521210765,-855.93,0.00043835,60]
[333802569,1722521210812,-500.0,0.00043835,60]
[333802570,1722521210853,-4055.87,0.00043835,60]
[333802571,1722521210898,-1923.54,0.00043835,60]
[333802572,1722521210941,-19102.73,0.00043835,60]
[333802573,1722521210982,-500.0,0.00043835,60]
[333802574,1722521211023,-660.62,0.00043835,60]
[333802575,1722521211065,-2392.53,0.00043835,60]
[333802576,1722521211108,-500.0,0.00043835,60]
[333802577,1722521211149,-2505.47,0.00043835,60]
[333802578,1722521211194,-11209.94,0.00043835,60]
[333802579,1722521211240,-585.62937646,0.00043835,60]
[333802580,1722521211282,-680.45,0.00043835,60]
[333802581,1722521211589,-2561.95,0.00043835,60]
[333802582,1722521211636,-6654.68,0.00043835,60]
[333802583,1722521211676,-500.0,0.00043835,60]
[333802584,1722521211721,-500.0,0.00043835,60]
[333802585,1722521211764,-3194.53,0.00043835,60]